Workbook

Sheet Characteristic
A1: 4CX20000 / 8990
A11: Vgk | B11: Ia
A12: -220 | B12: 0
A13: -190 | B13: 0.25
A14: -100 | B14: 3
A15: -35 | B15: 9
A16: 10 | B16: 15
A17: 20 | B17: 16
F36: Interpolation:
A37: CSTable | F37: Vgk | G37: Ia
A38: =CSTable(A12:A17,B12:B17) -> -220 | B38: 0 | C38: 0 | F38: =A12 -> -220 | G38: =csinterpolate($A$38:$C$43,F38) -> 0
A39: -190 | B39: 0.25 | C39: 0.0002400883505 | F39: =F38+($A$17-$A$12)/20 -> -208 | G39: 0.08789954714
A40: -100 | B40: 3 | C40: 0.0008412458802 | F40: -196 | G40: 0.1896281833
A41: -35 | B41: 9 | C41: 0.001355671478 | F41: -184 | G41: 0.3189673574
A42: 10 | B42: 15 | C42: -0.002372774696 | F42: -172 | G42: 0.4886027237
A43: 20 | B43: 16 | C43: 0 | F43: -160 | G43: 0.7101241465
F44: -148 | G44: 0.995073851
F45: -136 | G45: 1.35499406
F46: -124 | G46: 1.801427007
F47: -112 | G47: 2.345914912
F48: -100 | G48: 3
F49: -88 | G49: 3.775580131
F50: -76 | G50: 4.685975464
F51: -64 | G51: 5.744861729
F52: -52 | G52: 6.965914908
F53: -40 | G53: 8.362810664
F54: -28 | G54: 9.944036032
F55: -16 | G55: 11.63506994
F56: -4 | G56: 13.29463075
F57: 8 | G57: 14.77954643
F58: 20 | G58: 16

Sheet Anode
A1: =Characteristic!A1 -> 4CX20000 / 8990
A3: CLASS C
A5: Inputs:
A6: Output cct efficiency (%) | B6: 0.9
A7: Anode peak RF voltage (V) | B7: 9000
A8: DC anode supply voltage (V) | B8: 10000
A9: Grid bias voltage (V) | B9: -400
A10: Drive voltage peak (V) | B10: 420
A13: Calculated results:
A14: Tubes | B14: 1
A15: Anode current idle (A) | B15: =IF(B9<cutoff,0,$B$14*csinterpolate(CSIT,B9)) -> 0
A16: Anode current peak (A) | B16: =$B$14*csinterpolate(CSIT,B10+B9) -> 16
A17: Anode current DC (A) | B17: =$B$14*H44 -> 2.869186825
A18: Anode current fundamental (A) | B18: =$B$14*H45 -> 5.300481231
A19: Anode RFpower (W) | B19: =$B$14*B7*H45/2 -> 23852.16554
A20: Anode dissipation (W) | B20: =B8*B17-B19 -> 4839.702709
A21: Anode efficiency (%) | B21: =B19/(B8*B17) -> 0.8313214509
A22: Resonant load (ohms) | B22: =B7/H45/B14 -> 1697.959036
A23: Output power (W) | B23: =B6*B19 -> 21466.94899
A24: Output efficiency (%) | B24: =B19/(B8*B17)*B6 -> 0.7481893058
A41: Samples | B41: 64
A43: Time ° | B43: Vgk | C43: Ia | D43: If | E43: Idc | F43: Index | G43: FFT | H43: Amplitude
A44: 0 | B44: =$B$9+$B$10*SIN((CELL("row",B44)-CELL("row",$B$44))*2*PI()/$B$41) -> -400 | C44: =IF(B44<cutoff,0,csinterpolate(CSIT,B44)) -> 0 | D44: =$H$45*SIN((CELL("row",B44)-CELL("row",$B$44))*2*PI()/$B$41) -> 0 | E44: =$H$44 -> 2.869186825 | F44: 0 | G44: =fft(C44:C107) -> 183.627956800712 | H44: =IMABS(G44)/$B$41 -> 2.869186825
A45: =A44+1/$B$41*360 -> 5.625 | B45: -358.8328011 | C45: =IF(B45<cutoff,0,csinterpolate(CSIT,B45)) -> 0 | D45: =$H$45*SIN((CELL("row",B45)-CELL("row",$B$44))*2*PI()/$B$41) -> 0.5195380127 | E45: =$H$44 -> 2.869186825 | F45: 1 | G45: -2.42091503094288E-14-169.615399406644i | H45: =IMABS(G45)/$B$41*2 -> 5.300481231
A46: 11.25 | B46: -318.0620648 | C46: 0 | D46: 1.03407259 | E46: 2.869186825 | F46: 2 | G46: -132.663495934985+4.27912913436579E-14i | H46: 4.145734248
A47: 16.875 | B47: -278.0804356 | C47: 0 | D47: 1.538648484 | E47: 2.869186825 | F47: 3 | G47: 5.2318175833288E-14+85.4347959611669i | H47: 2.669837374
A48: 22.5 | B48: -239.2729584 | C48: 0 | D48: 2.028406351 | E48: 2.869186825 | F48: 4 | G48: 41.9908798599368-6.34223576434501E-14i | H48: 1.312214996
A49: 28.125 | B49: -202.0133705 | C49: 0.1360582187 | D49: 2.498629556 | E49: 2.869186825 | F49: 5 | G49: -5.00279071641296E-14-11.7235781504667i | H49: 0.3663618172
A50: 33.75 | B50: -166.6605021 | C50: 0.5800768167 | D50: 2.944789593 | E50: 2.869186825 | F50: 6 | G50: 3.34640132177971+4.53303437538202E-14i | H50: 0.1045750413
A51: 39.375 | B51: -133.5548207 | C51: 1.438567617 | D51: 3.362589696 | E51: 2.869186825 | F51: 7 | G51: 3.87729941469378E-14-7.10293578141068i | H51: 0.2219667432
A52: 45 | B52: -103.0151519 | C52: 2.824710719 | D52: 3.748006222 | E52: 2.869186825 | F52: 8 | G52: -5.49097218197111-3.2048365697368E-14i | H52: 0.1715928807
A53: 50.625 | B53: -75.33560959 | C53: 4.740592644 | D53: 4.0973274 | E53: 2.869186825 | F53: 9 | G53: -4.7871862723925E-14+3.05588918000276i | H53: 0.09549653688
A54: 56.25 | B54: -50.78276283 | C54: 7.099368406 | D54: 4.407189075 | E54: 2.869186825 | F54: 10 | G54: 1.62811040185494+5.81467789499343E-14i | H54: 0.05087845006
A55: 61.875 | B55: -29.59306897 | C55: 9.724828168 | D55: 4.674607109 | E55: 2.869186825 | F55: 11 | G55: 7.75995749862507E-14-1.05867315133282i | H55: 0.03308353598
A56: 67.5 | B56: -11.97059635 | C56: 12.20294193 | D56: 4.897006122 | E56: 2.869186825 | F56: 12 | G56: -0.677227911040638-9.54565745024671E-14i | H56: 0.02116337222
A57: 73.125 | B57: 1.914941008 | C57: 14.05729356 | D57: 5.072244289 | E57: 2.869186825 | F57: 13 | G57: -1.10218918817099E-13+0.210067262788652i | H57: 0.006564601962
A58: 78.75 | B58: 11.92981777 | C58: 15.20411103 | D58: 5.198633971 | E58: 2.869186825 | F58: 14 | G58: -0.190113691795581+1.19616825599851E-13i | H58: 0.005941052869
A59: 84.375 | B59: 17.9775852 | C59: 15.80542929 | D59: 5.274957966 | E59: 2.869186825 | F59: 15 | G59: 1.32334304477836E-13+0.343485887943644i | H59: 0.010733934
A60: 90 | B60: 20 | C60: 16 | D60: 5.300481231 | E60: 2.869186825 | F60: 16 | G60: 0.288192806491082-9.94759830064141E-14i | H60: 0.009006025203
A61: 95.625 | B61: 17.9775852 | C61: 15.80542929 | D61: 5.274957966 | E61: 2.869186825 | F61: 17 | G61: -1.02908987636361E-13-0.193592465060267i | H61: 0.006049764533
A62: 101.25 | B62: 11.92981777 | C62: 15.20411103 | D62: 5.198633971 | E62: 2.869186825 | F62: 18 | G62: -0.158650796684273+1.00069706727385E-13i | H62: 0.004957837396
A63: 106.875 | B63: 1.914941008 | C63: 14.05729356 | D63: 5.072244289 | E63: 2.869186825 | F63: 19 | G63: 9.75103922303336E-14+0.148803946162042i | H63: 0.004650123318
A64: 112.5 | B64: -11.97059635 | C64: 12.20294193 | D64: 4.897006122 | E64: 2.869186825 | F64: 20 | G64: 0.0954161708936554-7.68295881558786E-14i | H64: 0.00298175534
A65: 118.125 | B65: -29.59306897 | C65: 9.724828168 | D65: 4.674607109 | E65: 2.869186825 | F65: 21 | G65: -6.81355606700976E-14-0.00107853408534853i | H65: 3.370419017e-05
A66: 123.75 | B66: -50.78276283 | C66: 7.099368406 | D66: 4.407189075 | E66: 2.869186825 | F66: 22 | G66: 0.0683068753192896+5.65007432116668E-14i | H66: 0.002134589854
A67: 129.375 | B67: -75.33560959 | C67: 4.740592644 | D67: 4.0973274 | E67: 2.869186825 | F67: 23 | G67: 5.25042520311408E-14-0.0679891670529966i | H67: 0.00212466147
A68: 135 | B68: -103.0151519 | C68: 2.824710719 | D68: 3.748006222 | E68: 2.869186825 | F68: 24 | G68: -0.0219526761735049-5.28359907908671E-14i | H68: 0.0006860211304
A69: 140.625 | B69: -133.5548207 | C69: 1.438567617 | D69: 3.362589696 | E69: 2.869186825 | F69: 25 | G69: -4.99001881482108E-14-0.0134046519555371i | H69: 0.0004188953736
A70: 146.25 | B70: -166.6605021 | C70: 0.5800768167 | D70: 2.944789593 | E70: 2.869186825 | F70: 26 | G70: -0.0125546648425836+5.50290742877893E-14i | H70: 0.0003923332763
A71: 151.875 | B71: -202.0133705 | C71: 0.1360582187 | D71: 2.498629556 | E71: 2.869186825 | F71: 27 | G71: 5.53161032604277E-14-0.00387000186337971i | H71: 0.0001209375582
A72: 157.5 | B72: -239.2729584 | C72: 0 | D72: 2.028406351 | E72: 2.869186825 | F72: 28 | G72: -0.0067538733152368-5.1607156048572E-14i | H72: 0.0002110585411
A73: 163.125 | B73: -278.0804356 | C73: 0 | D73: 1.538648484 | E73: 2.869186825 | F73: 29 | G73: -4.46591548464159E-14-0.00640015322290566i | H73: 0.0002000047882
A74: 168.75 | B74: -318.0620648 | C74: 0 | D74: 1.03407259 | E74: 2.869186825 | F74: 30 | G74: -0.0180035106461389+3.76903369625481E-14i | H74: 0.0005626097077
A75: 174.375 | B75: -358.8328011 | C75: 0 | D75: 0.5195380127 | E75: 2.869186825 | F75: 31 | G75: 2.59306465189013E-14+0.0188853877435662i | H75: 0.000590168367
A76: 180 | B76: =$B$9+$B$10*SIN((CELL("row",B76)-CELL("row",$B$44))*2*PI()/$B$41) -> -400 | C76: 0 | D76: =$H$45*SIN((CELL("row",B76)-CELL("row",$B$44))*2*PI()/$B$41) -> 6.493876391e-16 | E76: 2.869186825 | F76: 32 | G76: 0.0168788096454335 | H76: =IMABS(G76)/$B$41 -> 0.0002637314007
A77: =A76+1/$B$41*360 -> 185.625 | B77: -441.1671989 | C77: 0 | D77: -0.5195380127 | E77: 2.869186825 | F77: 33 | G77: 1.56044881877149E-14-0.0188853877436514i
A78: 191.25 | B78: -481.9379352 | C78: 0 | D78: -1.03407259 | E78: 2.869186825 | F78: 34 | G78: -0.0180035106462242-2.70313285644086E-14i
A79: 196.875 | B79: -521.9195644 | C79: 0 | D79: -1.538648484 | E79: 2.869186825 | F79: 35 | G79: -4.13100543356082E-14+0.00640015322294829i
A80: 202.5 | B80: -560.7270416 | C80: 0 | D80: -2.028406351 | E80: 2.869186825 | F80: 36 | G80: -0.00675387331521193+5.00207514297912E-14i
A81: 208.125 | B81: -597.9866295 | C81: 0 | D81: -2.498629556 | E81: 2.869186825 | F81: 37 | G81: 5.68644523829542E-14+0.00387000186337794i
A82: 213.75 | B82: -633.3394979 | C82: 0 | D82: -2.944789593 | E82: 2.869186825 | F82: 38 | G82: -0.0125546648425843-5.53159270775747E-14i
A83: 219.375 | B83: -666.4451793 | C83: 0 | D83: -3.362589696 | E83: 2.869186825 | F83: 39 | G83: -6.25556735318195E-14+0.0134046519555358i
A84: 225 | B84: -696.9848481 | C84: 0 | D84: -3.748006222 | E84: 2.869186825 | F84: 40 | G84: -0.0219526761735072+5.3364647770171E-14i
A85: 230.625 | B85: -724.6643904 | C85: 0 | D85: -4.0973274 | E85: 2.869186825 | F85: 41 | G85: 5.57514104326806E-14+0.0679891670530051i
A86: 236.25 | B86: -749.2172372 | C86: 0 | D86: -4.407189075 | E86: 2.869186825 | F86: 42 | G86: 0.0683068753192938-5.86661388956092E-14i
A87: 241.875 | B87: -770.406931 | C87: 0 | D87: -4.674607109 | E87: 2.869186825 | F87: 43 | G87: -6.8190218012118E-14+0.00107853408534941i
A88: 247.5 | B88: -788.0294037 | C88: 0 | D88: -4.897006122 | E88: 2.869186825 | F88: 44 | G88: 0.0954161708936591+7.95543643981877E-14i
A89: 253.125 | B89: -801.914941 | C89: 0 | D89: -5.072244289 | E89: 2.869186825 | F89: 45 | G89: 9.05462872377843E-14-0.148803946162051i
A90: 258.75 | B90: -811.9298178 | C90: 0 | D90: -5.198633971 | E90: 2.869186825 | F90: 46 | G90: -0.158650796684292-1.00810688396786E-13i
A91: 264.375 | B91: -817.9775852 | C91: 0 | D91: -5.274957966 | E91: 2.869186825 | F91: 47 | G91: -1.05832933935339E-13+0.193592465060291i
A92: 270 | B92: -820 | C92: 0 | D92: -5.300481231 | E92: 2.869186825 | F92: 48 | G92: 0.288192806491082+9.94759830064141E-14i
A93: 275.625 | B93: -817.9775852 | C93: 0 | D93: -5.274957966 | E93: 2.869186825 | F93: 49 | G93: 1.0471613581746E-13-0.34348588794364i
A94: 281.25 | B94: -811.9298178 | C94: 0 | D94: -5.198633971 | E94: 2.869186825 | F94: 50 | G94: -0.190113691795585-1.0122329783891E-13i
A95: 286.875 | B95: -801.914941 | C95: 0 | D95: -5.072244289 | E95: 2.869186825 | F95: 51 | G95: -9.80867541052269E-14-0.210067262788643i
A96: 292.5 | B96: -788.0294037 | C96: 0 | D96: -4.897006122 | E96: 2.869186825 | F96: 52 | G96: -0.677227911040641+9.02311943695375E-14i
A97: 298.125 | B97: -770.406931 | C97: 0 | D97: -4.674607109 | E97: 2.869186825 | F97: 53 | G97: 7.69635684393435E-14+1.05867315133282i
A98: 303.75 | B98: -749.2172372 | C98: 0 | D98: -4.407189075 | E98: 2.869186825 | F98: 54 | G98: 1.62811040185494-6.65408076945886E-14i
A99: 309.375 | B99: -724.6643904 | C99: 0 | D99: -4.0973274 | E99: 2.869186825 | F99: 55 | G99: -5.64667399210322E-14-3.05588918000277i
A100: 315 | B100: -696.9848481 | C100: 0 | D100: -3.748006222 | E100: 2.869186825 | F100: 56 | G100: -5.49097218197112+3.15197087180641E-14i
A101: 320.625 | B101: -666.4451793 | C101: 0 | D101: -3.362589696 | E101: 2.869186825 | F101: 57 | G101: 3.90672737216047E-14+7.10293578141069i
A102: 326.25 | B102: -633.3394979 | C102: 0 | D102: -2.944789593 | E102: 2.869186825 | F102: 58 | G102: 3.34640132177971-4.06943765794351E-14i
A103: 331.875 | B103: -597.9866295 | C103: 0 | D103: -2.498629556 | E103: 2.869186825 | F103: 59 | G103: -5.53709638903555E-14+11.7235781504667i
A104: 337.5 | B104: -560.7270416 | C104: 0 | D104: -2.028406351 | E104: 2.869186825 | F104: 60 | G104: 41.9908798599368+6.75093661528514E-14i
A105: 343.125 | B105: -521.9195644 | C105: 0 | D105: -1.538648484 | E105: 2.869186825 | F105: 61 | G105: 7.40930754250524E-14-85.434795961167i
A106: 348.75 | B106: -481.9379352 | C106: 0 | D106: -1.03407259 | E106: 2.869186825 | F106: 62 | G106: -132.663495934985-6.48925357893404E-14i
A107: 354.375 | B107: -441.1671989 | C107: 0 | D107: -0.5195380127 | E107: 2.869186825 | F107: 63 | G107: -6.01480670825438E-14+169.615399406644i

Sheet Licence
A1: Licence / Copyright
A4: This spreadsheet, its macros and functions, and associated documentation are Copyright 2008 Owen Duffy.
A6: Licence is hereby granted to use this spreadsheet for its intended purpose.
A8: This licence does not permit distibution with any other software product, inclusion in any compilation of products,
A9: or copying to any WWW distribution sites or web servers.
A11: Users should not depend on the content without independent verification. No reponsiblity is accepted for the accuracy of the spreadsheet or for any errors.
A19: Module | B19: Version | C19: Date
A20: CubicSpline | B20: =cubicspline_version("v") -> 1.03 | C20: =cubicspline_version("d") -> 2010-07-06
A21: FFT | B21: =FFT_version("v") -> 1.05 | C21: =FFT_version("d") -> 2011-05-11
